Cogmind - Beta 16 @@@ ROGUE MODE // 2025.10.27 @ 19:09:15 Player: Bt-7274 Result: Destroyed by S-43 Plague with Heavy Machine Gun Performance ------------- Evolutions (9) 4500 Regions Visited (17) 3400 Robots Destroyed (73) 365 Value Destroyed (2338) 2338 Prototype IDs (11) 220 Alien Tech Used (0) 0 Bonus (570) 570 TOTAL SCORE: 11393 Bonus ------- Follower Combat Kills 592 Friendly Fire -22 Cogmind --------- Core Integrity 0/1600 Matter 176/300 Energy 86/100 System Corruption 12% Temperature Cool (0) Movement Core (50) Location -1/Access Parts ------- > --- POWER (2) -------- (None) > --- PROPULSION (6) --- (None) > --- UTILITY (13) ----- Faulty Experimental Optical Array Hacking Suite > --- WEAPON (4) ------- (None) > --- INVENTORY (5) ---- Quantum Reactor Advanced Weight Redist. System Heavy Shock Bomb Launcher Peak State ------------ > --- POWER ------------ Micro Fission Core Quantum Reactor > --- PROPULSION ------- Impulse Thruster Impulse Thruster Array Impulse Thruster Array > --- UTILITY ---------- Advanced Power Amplifier Experimental Optical Array Hacking Suite Improved Hacking Suite Authchip [Propulsion] > --- WEAPON ----------- Powered Hammer > --- INVENTORY -------- Advanced Weight Redist. System Heavy Shock Bomb Launcher [Rating: 85] Favorites ----------- Power Ion Engine Engine Ion Engine Power Core Light Nuclear Core Reactor Quantum Reactor Propulsion Aluminum Leg Leg Aluminum Leg Hover Unit Backup Propulsion III Flight Unit Impulse Thruster Array Utility Small Storage Unit Device Seismic Detector Storage Small Storage Unit Processor Target Analyzer Hackware Hacking Suite Protection Propulsion Shielding Weapon Minigun Energy Gun Beamcaster Energy Cannon Improved EM Pulse Cannon Ballistic Gun Minigun Launcher Mini Grenade Launcher Impact Weapon Powered Hammer Build | -11 -10 -10 -9 -9 -8 -7 -7 -7 -6 -6 -6 -5 -4 -4 -3 -2 -1 ------- Run | Yrd Mat Min Mat Min Mat Fac Low Low Fac Was Fac Fac Fac Ext Res Res Acc Slots Evolved 18 | . . . 2 . 2 2 . . 2 . . 2 2 . 2 2 2 Power 1 | . . . . . . . . . . . . 1 . . . . . Propulsion 4 | . . . 1 . . . . . . . . 1 . . . 1 1 Utility 11 | . . . 1 . 1 1 . . 2 . . . 2 . 2 1 1 Weapon 2 | . . . . . 1 1 . . . . . . . . . . . Parts Attached 110 | 7 2 3 8 . 7 5 1 1 9 9 27 9 2 . 4 5 11 Power 13 | 1 . 1 . . 1 1 . . 1 1 3 1 . . 1 . 2 Engine 5 | 1 . 1 . . . . . . 1 . 2 . . . . . . Core 7 | . . . . . 1 1 . . . 1 1 1 . . 1 . 1 Reactor 1 | . . . . . . . . . . . . . . . . . 1 Propulsion 25 | 2 . 1 2 . 3 1 . . 1 1 7 2 . . 1 2 2 Treads . | . . . . . . . . . . . . . . . . . . Leg 19 | 2 . 1 2 . 3 1 . . 1 1 7 1 . . . . . Wheel . | . . . . . . . . . . . . . . . . . . Hover . | . . . . . . . . . . . . . . . . . . Flight 6 | . . . . . . . . . . . . 1 . . 1 2 2 Utility 47 | 1 2 1 3 . 1 1 . 1 5 3 11 6 2 . 1 3 6 Device 20 | . 2 1 1 . . . . . 3 1 5 1 1 . . 1 4 Storage 3 | 1 . . . . . . . . . . 1 1 . . . . . Processor 5 | . . . 1 . 1 . . 1 . . . . 1 . 1 . . Hackware 11 | . . . . . . . . . 2 1 2 2 . . . 2 2 Protection 8 | . . . 1 . . 1 . . . 1 3 2 . . . . . Artifact . | . . . . . . . . . . . . . . . . . . Weapon 25 | 3 . . 3 . 2 2 1 . 2 4 6 . . . 1 . 1 Energy Gun 8 | 2 . . . . . . . . 2 3 1 . . . . . . Energy Cannon 1 | . . . . . . . . . . . 1 . . . . . . Ballistic Gun 14 | 1 . . 3 . 2 2 . . . 1 4 . . . 1 . . Ballistic Cannon . | . . . . . . . . . . . . . . . . . . Launcher 1 | . . . . . . . 1 . . . . . . . . . . Special Weapon . | . . . . . . . . . . . . . . . . . . Impact Weapon 1 | . . . . . . . . . . . . . . . . . 1 Slashing Weapon . | . . . . . . . . . . . . . . . . . . Piercing Weapon . | . . . . . . . . . . . . . . . . . . Special Melee Weapon . | . . . . . . . . . . . . . . . . . . Unidentified Prototypes 7 | . . . . . . 1 . . . 1 2 . . . 1 1 1 Parts Lost 76 | . 1 1 . . . . 2 . 9 6 27 9 1 1 1 3 15 Power 8 | . . . . . . . 1 . . 1 2 2 . . 1 . 1 Propulsion 15 | . . . . . . . . . 2 1 4 2 . 1 . 1 4 Utility 36 | . . 1 . . . . 1 . 3 3 12 5 1 . . 1 9 Weapon 17 | . 1 . . . . . . . 4 1 9 . . . . 1 1 Highest Loss Streak 16 | . 1 1 . . . . 2 . 7 6 16 7 1 1 1 2 8 To Critical Strikes 1 | . . . . . . . . . . . 1 . . . . . . Average Backups 6 | 4 7 7 7 8 7 7 7 7 6 4 6 6 6 5 4 4 2 Power 1 | 1 2 2 1 1 1 1 1 1 1 1 1 1 1 1 . 1 . Propulsion 1 | . 1 1 . 1 1 2 3 3 2 1 . 2 3 2 2 1 . Utility 1 | . . 1 3 4 3 2 2 2 . 1 2 2 1 1 1 . . Weapon 1 | 1 2 2 2 2 1 1 1 1 1 1 1 . 1 1 1 1 1 Tool/Special . | . . . . . . . . . . . . . . . . . . Unused Backups 15 | . . 2 3 . 2 . . . 1 . 1 2 . . . 2 2 Power 2 | . . . 2 . . . . . . . . . . . . . . Propulsion 4 | . . 1 . . . . . . . . . 1 . . . 2 . Utility 5 | . . . . . 1 . . . 1 . 1 1 . . . . 1 Weapon 4 | . . 1 1 . 1 . . . . . . . . . . . 1 Tool/Special . | . . . . . . . . . . . . . . . . . . Average Slot Usage (%) 82 | . 100 99 99 100 99 99 96 98 94 79 84 40 20 19 18 33 27 Engine 4 | . 14 14 11 11 5 . . . 5 1 2 . . . . . . Core 2 | . . . . . 3 7 6 7 . 3 3 4 . . 1 . 2 Leg 19 | . 28 28 32 33 27 23 23 23 19 16 17 6 . . . . . Device 6 | . 14 13 5 . 5 7 4 . 7 4 7 . 3 . . 3 2 Storage 6 | . 14 14 11 11 9 7 7 7 4 . 3 3 5 4 . . . Processor 7 | . . . 9 11 12 7 7 13 13 13 8 . 1 5 4 8 4 Hackware 6 | . . . . . . . . . 11 12 12 16 5 5 4 8 8 Protection 5 | . . . 6 11 9 14 15 15 4 3 7 1 . . . . . Energy Gun 6 | . 23 14 . . . . . . 3 17 12 . . . . . . Ballistic Gun 13 | . 4 14 21 22 26 30 29 30 20 4 5 . . . 2 2 . Peak Build Rating 85 | 6 7 7 13 13 25 38 38 41 55 54 59 50 27 22 39 73 85 Average Rating 31 | 5 6 6 11 13 22 33 36 40 50 46 48 38 23 19 28 59 48 On Entrance 24 | . 6 7 7 13 13 25 38 36 41 48 49 19 19 22 8 39 56 Avg Prop Armor Cover (%) 13 | . . . . . . . . . . 6 5 19 . . . 7 . Naked Turns . | . . . . . . . . . . . . . . . . . . Heaviest Build 46 | 14 16 16 17 17 21 28 28 26 35 30 46 15 6 5 11 9 31 Greatest Support 53 | 20 20 20 30 30 42 50 50 50 50 43 53 35 15 15 16 39 39 Greatest Overweight (x) 6 | 3 . . . . . . . . 1 6 4 . . . . . 1 Average Overweight (x) . | . . . . . . . . . . . . . . . . . . Largest Inventory Capacity 10 | 8 8 8 8 8 8 8 8 8 8 5 10 8 8 8 5 5 5 Average Capacity 7 | 7 8 8 8 8 8 8 8 8 7 5 7 7 8 7 5 5 5 Most Carried 10 | 6 8 8 8 8 8 8 8 7 8 5 10 8 6 6 5 5 4 Average Carried 6 | 4 7 7 7 8 7 7 7 7 6 4 6 6 6 5 4 4 2 Final Capacity 8 | 8 8 8 8 8 8 8 8 8 5 5 5 8 8 5 5 5 5 Final Carried 8 | 6 7 8 8 8 8 8 7 7 5 5 5 6 6 5 5 5 3 Class Distribution -------------------- 41% | Mutant 21% | Gunner 21% | Hacker-Gunner 9% | Hacker-Mutant 3% | Scavenger-Mutant Dominant Class ---------------- Mutant | -10/Materials Mutant | -10/Mines Mutant | -9/Materials Mutant | -9/Mines Gunner | -8/Materials Gunner | -7/Factory Gunner | -7/Lower Caves Gunner | -7/Lower Caves Hacker-Gunner | -6/Factory Hacker-Gunner | -6/Waste Hacker-Gunner | -6/Factory Hacker-Mutant | -5/Factory Mutant | -4/Factory Mutant | -4/Extension Mutant | -3/Research Hacker-Mutant | -2/Research Hacker-Mutant | -1/Access Resources | -11 -10 -10 -9 -9 -8 -7 -7 -7 -6 -6 -6 -5 -4 -4 -3 -2 -1 ----------- Run | Yrd Mat Min Mat Min Mat Fac Low Low Fac Was Fac Fac Fac Ext Res Res Acc Matter Collected 2549 | 306 45 59 288 52 226 . 482 . 287 151 598 26 . 6 . 18 5 Remotely . | . . . . . . . . . . . . . . . . . . Salvage Created 2617 | 201 130 50 306 72 200 . 573 67 136 . 864 . . . . 18 . Parts 138 | 22 7 5 20 9 8 . 16 2 5 . 42 . . . . 2 . Haulers Intercepted 1 | . . . . . . . . . . . 1 . . . . . . Recyclers Shooed 2 | . . . . . 1 . . . . . . . . 1 . . . Parts Field Recycled . | . . . . . . . . . . . . . . . . . . Retrieved Matter . | . . . . . . . . . . . . . . . . . . Parts Self-Destructed 17 | . . . . . . . 15 2 . . . . . . . . . Prevented . | . . . . . . . . . . . . . . . . . . Parts Restored . | . . . . . . . . . . . . . . . . . . Kills | -11 -10 -10 -9 -9 -8 -7 -7 -7 -6 -6 -6 -5 -4 -4 -3 -2 -1 ------- Run | Yrd Mat Min Mat Min Mat Fac Low Low Fac Was Fac Fac Fac Ext Res Res Acc Combat Hostiles Destroyed 54 | . 5 3 5 3 4 . 13 1 3 . 17 . . . . . . Guns 45 | . 5 3 5 3 4 . 10 1 3 . 11 . . . . . . Cannons 2 | . . . . . . . . . . . 2 . . . . . . AOE 6 | . . . . . . . 3 . . . 3 . . . . . . Classes Destroyed 16 | 2 2 . 2 . . . 3 . 1 . 5 . . . . 1 . Worker 1 | 1 . . . . . . . . . . . . . . . . . Builder 2 | . . . . . . . . . . . 2 . . . . . . Tunneler 9 | 8 . . . 1 . . . . . . . . . . . . . Hauler 1 | . . . . . . . . . . . 1 . . . . . . Operator 1 | . . . . . . . . . . . . . . . . 1 . Watcher 3 | . . . 3 . . . . . . . . . . . . . . Swarmer 18 | . 3 3 . 3 . . 5 . . . 4 . . . . . . Cutter 1 | . . . . . . . . . . . 1 . . . . . . Grunt 15 | . 2 . 3 . 3 . 5 . . . 2 . . . . . . Brawler 2 | . . . . . . . 1 . 1 . . . . . . . . Duelist 3 | . . . . . . . 2 1 . . . . . . . . . Sentry 4 | . . . 2 . 1 . 1 . . . . . . . . . . Specialist 3 | . . . . . . . . . . . 3 . . . . . . Hunter 4 | . . . . . . . . . . . 4 . . . . . . Programmer 5 | . . . . . . . . . 2 . 3 . . . . . . Mutant 1 | . . . . . . . 1 . . . . . . . . . . Best Kill Streak 8 | 2 3 3 2 4 2 . 8 1 1 . 6 . . . . 1 . Combat Bots Only 8 | . 3 3 2 3 2 . 8 1 1 . 4 . . . . . . Max Kills in Single Turn 2 | 1 1 1 1 1 1 . 2 1 1 . 2 . . . . 1 . Gunslinging 1 | . . . . . . . . . . . 1 . . . . . . Exploded 2 | . . . . . . . 1 . . . 2 . . . . . . Melee . | . . . . . . . . . . . . . . . . . . Uniques/NPCs Destroyed . | . . . . . . . . . . . . . . . . . . Combat | -11 -10 -10 -9 -9 -8 -7 -7 -7 -6 -6 -6 -5 -4 -4 -3 -2 -1 -------- Run | Yrd Mat Min Mat Min Mat Fac Low Low Fac Was Fac Fac Fac Ext Res Res Acc Hostile Shots Fired 916 | . 32 17 23 12 21 . 45 14 39 3 225 121 19 41 46 36 222 Missed 362 | . 6 3 6 4 5 . 14 9 14 . 49 62 9 16 29 19 117 Hits 554 | . 26 14 17 8 16 . 31 5 25 3 176 59 10 25 17 17 105 Melee 18 | . . . . . . . 3 . 7 3 5 . . . . . . Projectile 536 | . 26 14 17 8 16 . 28 5 18 . 171 59 10 25 17 17 105 AOE 5 | . . . . . . . . . 3 . 2 . . . . . . Critical Strikes 24 | . . . . . . . 1 1 2 2 7 2 1 . 1 . 7 Actively Blocked 1 | . . . . . . . . . 1 . . . . . . . . Part Disruptions 1 | . . . . . . . . . . . 1 . . . . . . Damage Taken 10690 | . 234 126 223 65 248 . 633 82 665 94 3247 1073 182 656 360 408 2394 Core 3912 | . 50 9 29 6 . . 86 . 65 23 636 362 144 626 157 118 1601 Absorbed by Shields 56 | . . . . . . . . . 24 22 . 10 . . . . . Redirected to Shielding 138 | . . . 37 1 15 . 39 5 41 . . . . . . . . Regen/Repaired (Parts) 37 | . . . 37 . . . . . . . . . . . . . . Core Remaining (%) 74 | 100 . 76 . 91 100 . . 87 . . 14 63 . 33 87 91 . Volleys Fired 201 | 21 14 9 22 7 14 . 25 2 14 3 68 . . . 1 1 . Largest 4 | 2 2 2 2 2 3 . 4 4 4 4 4 . . . 1 1 . Hottest 250 | 80 80 60 43 46 73 . 111 106 163 250 250 . . . 35 35 . Shots Fired 464 | 42 27 18 44 14 42 . 91 8 40 11 125 . . . 1 1 . Gun 439 | 42 27 18 44 14 42 . 84 8 40 11 107 . . . 1 1 . Cannon 11 | . . . . . . . . . . . 11 . . . . . . Launcher 14 | . . . . . . . 7 . . . 7 . . . . . . Special . | . . . . . . . . . . . . . . . . . . Kinetic 293 | 12 . 9 44 14 42 . 84 8 22 2 54 . . . 1 1 . Thermal 80 | . . . . . . . . . 18 9 53 . . . . . . Explosive 14 | . . . . . . . 7 . . . 7 . . . . . . Electromagnetic 77 | 30 27 9 . . . . . . . . 11 . . . . . . Robot Hit Streak 18 | 3 2 4 18 3 6 . 10 7 11 3 14 . . . 1 2 . Robot Miss Streak 6 | 3 6 5 1 2 2 . 3 1 2 2 5 . . . . . . Penetration Max . | . . . . . . . . . . . . . . . . . . Secondary Targets 5 | . . . . 1 . . 1 . . . 3 . . . . . . Max Gunslinging Chain 1 | . . . . 1 . . 1 . . . 1 . . . . . . Shots Hit Robots 280 | 20 8 9 40 8 24 . 56 7 27 6 72 . . . 1 1 1 Core Hits 132 | 9 6 3 13 4 9 . 35 3 8 1 40 . . . . 1 . Critical Kills 2 | . . 1 . . . . . . . . 1 . . . . . . Critical Parts Destroyed 7 | . . . . . 2 . 1 1 2 . . . . . . . 1 Critical Strikes 13 | . . 1 . . 2 . 1 1 5 . 2 . . . . . 1 Burn 3 | . . . . . . . . . 2 . 1 . . . . . . Destroy 9 | . . 1 . . 2 . 1 1 3 . 1 . . . . . . Smash 1 | . . . . . . . . . . . . . . . . . 1 Melee Attacks 1 | . . . . . . . . . . . . . . . . . 1 Impact 1 | . . . . . . . . . . . . . . . . . 1 Slashing . | . . . . . . . . . . . . . . . . . . Piercing . | . . . . . . . . . . . . . . . . . . Sneak Attacks . | . . . . . . . . . . . . . . . . . . Combat Hostiles . | . . . . . . . . . . . . . . . . . . Follow-up Attacks . | . . . . . . . . . . . . . . . . . . Damage Inflicted 6045 | 285 93 118 465 123 402 . 1607 131 565 159 1962 . . 12 23 25 75 Guns 4537 | 285 93 105 465 123 395 . 937 131 564 159 1232 . . . 23 25 . Cannons 231 | . . . . . . . . . . . 231 . . . . . . Explosions 1149 | . . . . . . . 670 . . . 479 . . . . . . Melee 62 | . . . . . . . . . . . . . . . . . 62 Ramming 66 | . . 13 . . 7 . . . 1 . 20 . . 12 . . 13 Kinetic 3114 | 77 . 61 465 123 395 . 937 131 362 12 503 . . . 23 25 . Thermal 1078 | . . . . . . . . . 202 147 729 . . . . . . Explosive 1149 | . . . . . . . 670 . . . 479 . . . . . . Electromagnetic 576 | 208 93 44 . . . . . . . . 231 . . . . . . Impact 62 | . . . . . . . . . . . . . . . . . 62 Slashing . | . . . . . . . . . . . . . . . . . . Piercing . | . . . . . . . . . . . . . . . . . . Highest Corruption 19 | . . . . . . . . . 13 13 19 2 . . . . 12 Average Corruption 11 | . . . . . . . . . 5 13 15 1 . . . . 6 Corruption Purged . | . . . . . . . . . . . . . . . . . . Corruption Blocked . | . . . . . . . . . . . . . . . . . . Effects 99 | . . . . . . . . . 15 12 67 . . . . . 5 Message Errors 22 | . . . . . . . . . 2 4 14 . . . . . 2 Matter Fused 23 | . . . . . . . . . 5 1 16 . . . . . 1 Heat Flow Errors 13 | . . . . . . . . . 1 3 8 . . . . . 1 Energy Discharges 7 | . . . . . . . . . 2 . 4 . . . . . 1 Parts Fused 1 | . . . . . . . . . . . 1 . . . . . . Data Loss (minor) 11 | . . . . . . . . . . 2 9 . . . . . . Data Loss (major) 4 | . . . . . . . . . 2 . 2 . . . . . . Misfires 5 | . . . . . . . . . 1 1 3 . . . . . . Alerts 1 | . . . . . . . . . . . 1 . . . . . . Misdirections 4 | . . . . . . . . . 1 1 2 . . . . . . Weapon Failures 8 | . . . . . . . . . 1 . 7 . . . . . . Overload Shots . | . . . . . . . . . . . . . . . . . . Overflow Damage 128 | . . . . . . . 43 . . . 23 . . . . . 62 Projectiles . | . . . . . . . . . . . . . . . . . . Explosions 66 | . . . . . . . 43 . . . 23 . . . . . . Melee 62 | . . . . . . . . . . . . . . . . . 62 Knockbacks 2 | . . . . . . . . . 1 . . . . . . . 1 Impact 2 | . . . . . . . . . 1 . . . . . . . 1 Kinetic . | . . . . . . . . . . . . . . . . . . Secondary . | . . . . . . . . . . . . . . . . . . Self-Inflicted Damage 255 | . . . . . . . 67 . . . 176 . . 6 . . 6 Shots 9 | . . . . . . . 3 . . . 6 . . . . . . Rammed 2 | . . . . . . . . . . . . . . 1 . . 1 Targets Rammed 11 | . . 4 . . 2 . . . 1 . 2 . . 1 . . 1 Kicked 9 | . . 4 . . 2 . . . 1 . 2 . . . . . . Crushed . | . . . . . . . . . . . . . . . . . . Highest Temperature 439 | 36 144 . 7 . 138 . 81 93 295 354 439 . . . 266 . 124 Average Temperature 89 | 19 55 . 4 . 52 . 38 41 108 135 152 . . . 112 . 72 Received Heat Transfer 1096 | . 36 9 93 . 144 . 54 63 18 . 138 219 39 72 130 54 27 Effects 5 | . . . . . . . . . . . 5 . . . . . . Shutdowns 1 | . . . . . . . . . . . 1 . . . . . . Damage (major) 4 | . . . . . . . . . . . 4 . . . . . . Siege Activations . | . . . . . . . . . . . . . . . . . . Martial Activations . | . . . . . . . . . . . . . . . . . . Shielding Activations . | . . . . . . . . . . . . . . . . . . Robots Disrupted . | . . . . . . . . . . . . . . . . . . Combat Hostiles . | . . . . . . . . . . . . . . . . . . Robots Corrupted 1 | . . . . . . . . . . . 1 . . . . . . Combat Hostiles 1 | . . . . . . . . . . . 1 . . . . . . Parts Fried 6 | 3 . . . . . . . . . . 3 . . . . . . Impact Corruptions 1 | . . . . . . . . . . . . . . . . . 1 Robots Melted . | . . . . . . . . . . . . . . . . . . Combat Hostiles . | . . . . . . . . . . . . . . . . . . Parts Melted 5 | . . . . . . . . . 2 . 3 . . . . . . Heat Transferred 2072 | . . . . . . . . . 518 259 1295 . . . . . . Parts Sabotaged . | . . . . . . . . . . . . . . . . . . Parts Stolen . | . . . . . . . . . . . . . . . . . . Parts Stripped . | . . . . . . . . . . . . . . . . . . Power Chain Reactions . | . . . . . . . . . . . . . . . . . . Alert | -11 -10 -10 -9 -9 -8 -7 -7 -7 -6 -6 -6 -5 -4 -4 -3 -2 -1 ------- Run | Yrd Mat Min Mat Min Mat Fac Low Low Fac Was Fac Fac Fac Ext Res Res Acc Maximum Alert Level 1 | . . . . . . . . . . . 1 1 . . 1 . . Low Security (%) 86 | 100 100 100 100 100 100 100 . . 100 100 39 92 100 100 67 100 100 Level 1 13 | . . . . . . . . . . . 60 7 . . 32 . . Level 2 . | . . . . . . . . . . . . . . . . . . Level 3 . | . . . . . . . . . . . . . . . . . . Level 4 . | . . . . . . . . . . . . . . . . . . Level 5 . | . . . . . . . . . . . . . . . . . . High Security . | . . . . . . . . . . . . . . . . . . Max Security . | . . . . . . . . . . . . . . . . . . Peak Influence 381 | 10 80 50 72 65 81 36 . . 44 19 381 246 122 56 255 162 101 Initial 139 | . . 1 1 4 21 36 . . 44 . . 139 107 56 6 137 86 Average 70 | . 22 6 23 21 21 15 . . 5 1 224 105 102 28 107 130 49 Influence Increases 3740 | 45 157 100 196 75 281 . 265 90 88 51 1169 487 60 34 315 117 210 Destroy 0b10 Robot/C 1440 | . 100 60 100 60 180 . 240 20 60 . 620 . . . . . . Destroy 0b10 Robot/NC 105 | 45 . . 15 5 . . . . . . 35 . . . . 5 . Destroy Leader 296 | . 10 10 46 10 40 . 10 10 20 . 140 . . . . . . Allied During Kill 273 | . . . . . 13 . . . . . 260 . . . . . . Successful Hack 63 | . 17 . 4 . . . . . 7 . 2 22 . 4 . 7 . Disable Machine 15 | . . . . . . . . . . . 15 . . . . . . Destroy Structure 78 | . . . 1 . 3 . . . 1 51 22 . . . . . . Partial Spotted 60 | . . . . . . . . . . . . 45 . . . 15 . Lose Combat Pursuer 1410 | . 30 30 30 . 45 . 15 60 . . 75 420 60 30 315 90 210 Influence Decreases 3675 | 45 151 100 190 32 256 80 244 41 158 51 884 552 163 137 84 218 289 Entered New Map 621 | . . 5 5 8 34 44 . 5 26 . . 146 113 61 8 108 58 Time Decay 2100 | 45 141 85 185 24 151 36 224 36 128 32 454 252 40 20 66 80 101 Lost Part 575 | . 10 10 . . . . 20 . . . 270 75 10 10 10 30 130 Lost Ally 239 | . . . . . 60 . . . . 19 160 . . . . . . Purge Threat 140 | . . . . . 11 . . . 4 . . 79 . 46 . . . Squads Dispatched 22 | . 1 . 1 . 2 . . . 3 . 5 4 1 1 . 1 3 Investigation 6 | . 1 . 1 . 1 . . . . . . 1 . . . . 2 Extermination 8 | . . . . . . . . . 2 . 3 1 . . . 1 1 Reinforcement 8 | . . . . . 1 . . . 1 . 2 2 1 1 . . . Assault . | . . . . . . . . . . . . . . . . . . Garrison . | . . . . . . . . . . . . . . . . . . Intercept . | . . . . . . . . . . . . . . . . . . Searches Triggered . | . . . . . . . . . . . . . . . . . . Construction Impeded . | . . . . . . . . . . . . . . . . . . Haulers Reinforced 1 | . . . . . . . . . . . 1 . . . . . . Active Scanning Responses . | . . . . . . . . . . . . . . . . . . Cargo Convoy Interrupts 1 | . . . . . . . . . . . 1 . . . . . . Stealth | -11 -10 -10 -9 -9 -8 -7 -7 -7 -6 -6 -6 -5 -4 -4 -3 -2 -1 --------- Run | Yrd Mat Min Mat Min Mat Fac Low Low Fac Was Fac Fac Fac Ext Res Res Acc Distress Signals 13 | . 3 . 2 . . . . . . . . 3 . . 3 . 2 Communications Jammed . | . . . . . . . . . . . . . . . . . . Distress Signals . | . . . . . . . . . . . . . . . . . . Times Spotted 267 | . 17 5 13 3 13 . 14 10 9 4 47 44 7 11 20 16 34 Peak Tracking Total 20 | . 6 3 6 3 5 . 9 4 3 4 12 13 5 9 13 9 20 Tactical Retreats 34 | . 2 1 1 . 1 . 1 1 . 1 3 9 2 1 4 2 5 ECM-based Alert Blocks 4 | . 4 . . . . . . . . . . . . . . . . Traps | -11 -10 -10 -9 -9 -8 -7 -7 -7 -6 -6 -6 -5 -4 -4 -3 -2 -1 ------- Run | Yrd Mat Min Mat Min Mat Fac Low Low Fac Was Fac Fac Fac Ext Res Res Acc Traps Triggered 9 | . . . 1 . 1 . . . 5 . 1 1 . . . . . Indirectly . | . . . . . . . . . . . . . . . . . . Trap Hack Attempts . | . . . . . . . . . . . . . . . . . . Triggered . | . . . . . . . . . . . . . . . . . . Disarmed . | . . . . . . . . . . . . . . . . . . Reprogrammed . | . . . . . . . . . . . . . . . . . . Reused . | . . . . . . . . . . . . . . . . . . Traps Extracted . | . . . . . . . . . . . . . . . . . . Installed . | . . . . . . . . . . . . . . . . . . Triggered . | . . . . . . . . . . . . . . . . . . Machines | -11 -10 -10 -9 -9 -8 -7 -7 -7 -6 -6 -6 -5 -4 -4 -3 -2 -1 ---------- Run | Yrd Mat Min Mat Min Mat Fac Low Low Fac Was Fac Fac Fac Ext Res Res Acc Machines Disabled 4 | . . . . . . . 3 . . . 1 . . . . . . Max in Single Turn 1 | . . . . . . . 1 . . . 1 . . . . . . Garrison Access 4 | . . . . . 1 . . . . . . 1 . . 1 . 1 Machines Repaired . | . . . . . . . . . . . . . . . . . . Machines Dismantled . | . . . . . . . . . . . . . . . . . . Machines Sabotaged . | . . . . . . . . . . . . . . . . . . Overloaded Fab Kills . | . . . . . . . . . . . . . . . . . . Hacking | -11 -10 -10 -9 -9 -8 -7 -7 -7 -6 -6 -6 -5 -4 -4 -3 -2 -1 --------- Run | Yrd Mat Min Mat Min Mat Fac Low Low Fac Was Fac Fac Fac Ext Res Res Acc Machines Accessed 47 | . 4 . 9 . 2 . . 1 4 . 6 6 1 4 4 2 4 Terminals 29 | . 2 . 6 . 1 . . . 3 . 4 2 1 4 1 2 3 Fabricators 1 | . . . . . . . . . . . . 1 . . . . . Repair Stations 3 | . 1 . 1 . . . . . . . . . . . 1 . . Recycling Units 2 | . 1 . . . . . . . . . . . . . 1 . . Scanalyzers 5 | . . . 2 . . . . . . . 1 2 . . . . . Garrison Access 6 | . . . . . 1 . . . 1 . 1 1 . . 1 . 1 Total Hacks 96 | . 10 . 21 . 7 . . 1 7 . 13 10 1 9 4 4 9 Successful 37 | . 4 . 9 . 4 . . 1 2 . 4 6 . 3 1 2 1 Failed 57 | . 6 . 11 . 3 . . . 5 . 9 3 1 6 3 2 8 Catastrophic 18 | . . . 4 . 1 . . . 3 . 3 1 1 . 1 1 3 Database Lockouts 2 | . . . 1 . . . . . . . . 1 . . . . . Manual 39 | . . . 9 . . . . . 4 . 8 2 1 6 . 3 6 Terminals 65 | . 8 . 14 . 5 . . . 5 . 8 4 1 9 1 4 6 Fabricators 1 | . . . . . . . . . . . . 1 . . . . . Repair Stations 4 | . 1 . 2 . . . . . . . . . . . 1 . . Recycling Units 2 | . 1 . . . . . . . . . . . . . 1 . . Scanalyzers 13 | . . . 5 . . . . . . . 4 4 . . . . . Garrison Access 10 | . . . . . 2 . . . 2 . 1 1 . . 1 . 3 Terminal Hacks 20 | . 3 . 4 . 3 . . 1 2 . . 2 . 3 . 2 . Record 3 | . 1 . . . 1 . . . . . . . . . . 1 . Prototype ID Bank 2 | . 1 . 1 . . . . . . . . . . . . . . Open Door 2 | . . . . . . . . 1 . . . . . 1 . . . Level Access Points 1 | . . . . . . . . . . . . . . . . 1 . Scanalyzer Index 1 | . 1 . . . . . . . . . . . . . . . . Unreport Threat 7 | . . . . . 2 . . . 2 . . 2 . 1 . . . Locate Traps 2 | . . . 2 . . . . . . . . . . . . . . Transport Status 1 | . . . . . . . . . . . . . . 1 . . . Zone Layout 1 | . . . 1 . . . . . . . . . . . . . . Fabricator Hacks 1 | . . . . . . . . . . . . 1 . . . . . Network Status 1 | . . . . . . . . . . . . 1 . . . . . Repair Station Hacks 2 | . . . 2 . . . . . . . . . . . . . . Scan Component 1 | . . . 1 . . . . . . . . . . . . . . Repair 1 | . . . 1 . . . . . . . . . . . . . . Recycling Unit Hacks 1 | . 1 . . . . . . . . . . . . . . . . Report Inventory 1 | . 1 . . . . . . . . . . . . . . . . Scanalyzer 9 | . . . 3 . . . . . . . 4 2 . . . . . Retrieve Study 9 | . . . 3 . . . . . . . 4 2 . . . . . Garrison Access Hacks 4 | . . . . . 1 . . . . . . 1 . . 1 . 1 Seal Access 4 | . . . . . 1 . . . . . . 1 . . 1 . 1 Unauthorized Hacks . | . . . . . . . . . . . . . . . . . . Terminals . | . . . . . . . . . . . . . . . . . . Fabricators . | . . . . . . . . . . . . . . . . . . Repair Stations . | . . . . . . . . . . . . . . . . . . Recycling Units . | . . . . . . . . . . . . . . . . . . Scanalyzers . | . . . . . . . . . . . . . . . . . . Garrison Access . | . . . . . . . . . . . . . . . . . . Data Cores Recovered 1 | . . . . . . . . . . . . . . . . 1 . Used . | . . . . . . . . . . . . . . . . . . Hacking Detections 38 | . 3 . 8 . 1 . . . 4 . 5 4 1 4 3 1 4 Full Trace Events 5 | . 2 . . . . . . . . . . 1 . . . . 2 Feedback Events . | . . . . . . . . . . . . . . . . . . Feedback Blocked . | . . . . . . . . . . . . . . . . . . Robot Schematics Acquired . | . . . . . . . . . . . . . . . . . . Robots Built . | . . . . . . . . . . . . . . . . . . Authchips . | . . . . . . . . . . . . . . . . . . Time . | . . . . . . . . . . . . . . . . . . Total Robot Build Rating . | . . . . . . . . . . . . . . . . . . Part Schematics Acquired . | . . . . . . . . . . . . . . . . . . Parts Built . | . . . . . . . . . . . . . . . . . . Authchips . | . . . . . . . . . . . . . . . . . . Time . | . . . . . . . . . . . . . . . . . . Total Part Build Rating . | . . . . . . . . . . . . . . . . . . Part Studies Acquired 8 | . . . 3 . . . . . . . 3 2 . . . . . Parts Repaired 1 | . . . 1 . . . . . . . . . . . . . . Time 26 | . . . 26 . . . . . . . . . . . . . . Parts Recycled . | . . . . . . . . . . . . . . . . . . Recycled Matter . | . . . . . . . . . . . . . . . . . . Retrieved Matter . | . . . . . . . . . . . . . . . . . . Retrieved Components . | . . . . . . . . . . . . . . . . . . Parts Scanalyzed . | . . . . . . . . . . . . . . . . . . Part Schematics Acquired . | . . . . . . . . . . . . . . . . . . Parts Damaged . | . . . . . . . . . . . . . . . . . . Bothacking | -11 -10 -10 -9 -9 -8 -7 -7 -7 -6 -6 -6 -5 -4 -4 -3 -2 -1 ------------ Run | Yrd Mat Min Mat Min Mat Fac Low Low Fac Was Fac Fac Fac Ext Res Res Acc Used RIF Installer . | . . . . . . . . . . . . . . . . . . Robots Hacked . | . . . . . . . . . . . . . . . . . . Non-combat . | . . . . . . . . . . . . . . . . . . Combat . | . . . . . . . . . . . . . . . . . . Robot Hacks Applied . | . . . . . . . . . . . . . . . . . . Relay Couplers Released . | . . . . . . . . . . . . . . . . . . Fabnet Peak Effective % . | . . . . . . . . . . . . . . . . . . Robots Rewired . | . . . . . . . . . . . . . . . . . . Allies Hacked . | . . . . . . . . . . . . . . . . . . Hacks Repelled . | . . . . . . . . . . . . . . . . . . Allies | -11 -10 -10 -9 -9 -8 -7 -7 -7 -6 -6 -6 -5 -4 -4 -3 -2 -1 -------- Run | Yrd Mat Min Mat Min Mat Fac Low Low Fac Was Fac Fac Fac Ext Res Res Acc Total Allies 21 | . . . . 3 . . . . . 18 . . . . . . . Largest Group 18 | . . . . 3 3 . . . . 18 9 . . . . . . Highest-Rated Group 656 | . . . . 40 40 . . . . 656 351 . . . . . . Highest-Rated Ally 50 | . . . . 16 16 . . . . 50 46 . . . . . . Total Orders . | . . . . . . . . . . . . . . . . . . Ally Attacks 196 | . . . . . 28 . . . . 98 70 . . . . . . Total Damage 7655 | . . . . . 255 . . . . 5521 1879 . . . . . . Kills 34 | . . . . . 5 . . . . 11 18 . . . . . . Allies Corrupted . | . . . . . . . . . . . . . . . . . . Allies Melted . | . . . . . . . . . . . . . . . . . . Intel | -11 -10 -10 -9 -9 -8 -7 -7 -7 -6 -6 -6 -5 -4 -4 -3 -2 -1 ------- Run | Yrd Mat Min Mat Min Mat Fac Low Low Fac Was Fac Fac Fac Ext Res Res Acc Active Infowar (turns) 3862 | . 444 653 254 . 357 104 431 . 921 58 92 . 76 69 160 168 75 Sensors 1089 | . . . 110 . . . . . 921 58 . . . . . . . Terrain 55 | . . . . . . . . . . . . . 55 . . . . Structural 90 | . . . . . . . . . . . 90 . . . . . . Seismic 2118 | . 410 539 254 . 357 104 431 . . . . . . . . . 23 Machine Analysis 481 | . . . . . . . . . . . . . 32 69 160 168 52 Jamming 2 | . . . . . . . . . . . 2 . . . . . . ECM 148 | . 34 114 . . . . . . . . . . . . . . . Robot Analysis Total . | . . . . . . . . . . . . . . . . . . Derelict Logs Recovered 4 | . . 2 . . . . 1 1 . . . . . . . . . Drone Launches . | . . . . . . . . . . . . . . . . . . Drone Recoveries . | . . . . . . . . . . . . . . . . . . Exploration | -11 -10 -10 -9 -9 -8 -7 -7 -7 -6 -6 -6 -5 -4 -4 -3 -2 -1 ------------- Run | Yrd Mat Min Mat Min Mat Fac Low Low Fac Was Fac Fac Fac Ext Res Res Acc Turns Passed 7933 | 422 444 662 744 112 559 104 755 116 961 306 1418 589 91 69 160 168 253 Spaces Moved 7114 | 282 269 462 514 85 393 74 540 89 582 248 874 1076 220 163 324 375 544 Core 296 | 11 . . . . . . . . . 39 99 . . 20 30 . 97 Treads . | . . . . . . . . . . . . . . . . . . Legs 4343 | 271 269 462 514 85 393 74 540 89 582 209 775 80 . . . . . Wheels . | . . . . . . . . . . . . . . . . . . Hover . | . . . . . . . . . . . . . . . . . . Flight 2475 | . . . . . . . . . . . . 996 220 143 294 375 447 Fastest Speed 34 | 50 120 120 105 105 105 118 123 123 105 50 50 40 40 40 45 34 37 Average Speed 89 | 121 120 120 105 105 113 122 123 123 120 104 118 49 40 41 45 38 41 Slowest Speed 350 | 200 120 120 120 105 118 123 123 123 190 350 250 97 40 50 50 45 119 Overloaded Moves . | . . . . . . . . . . . . . . . . . . Propulsion Burnouts . | . . . . . . . . . . . . . . . . . . Robots Hopped 68 | . . . . . . . . . . . . 27 3 3 3 18 14 Potential Cave-ins . | . . . . . . . . . . . . . . . . . . Cave-ins Triggered . | . . . . . . . . . . . . . . . . . . Exploration Rate (%) 29 | 10 41 56 44 18 33 3 66 11 14 88 21 31 8 40 12 9 18 Regions Visited 17 Branch Regions 5 Pre-discovered Areas . | . . . . . . . . . . . . . . . . . . Known Exits Taken 1 | . . . . . . . . . . . . . . . . 1 . Unknown Exits Taken 14 | 1 1 1 1 1 1 1 1 1 . . 1 1 1 1 1 . . Scrap Searched 3 | . . 1 . . . . 2 . . . . . . . . . . Spaces Dug 12 | . . . . . . . 12 . . . . . . . . . . Terrain Destroyed 107 | . . . . . . . 63 . 1 . 43 . . . . . . Melee . | . . . . . . . . . . . . . . . . . . Projectile 1 | . . . . . . . . . 1 . . . . . . . . AOE 106 | . . . . . . . 63 . . . 43 . . . . . . Terrain Rammed . | . . . . . . . . . . . . . . . . . . Walls Destroyed . | . . . . . . . . . . . . . . . . . . Machines Disabled . | . . . . . . . . . . . . . . . . . . Actions | -11 -10 -10 -9 -9 -8 -7 -7 -7 -6 -6 -6 -5 -4 -4 -3 -2 -1 --------- Run | Yrd Mat Min Mat Min Mat Fac Low Low Fac Was Fac Fac Fac Ext Res Res Acc Total 8224 | 315 361 550 680 93 483 86 579 91 813 286 1147 1103 218 161 330 378 550 Wait 710 | . 71 66 116 2 53 2 8 . 184 16 154 19 . . 4 10 5 Move 6980 | 281 268 461 513 84 392 73 539 88 582 247 873 1030 213 158 318 339 521 Hop 50 | . . . . . . . . . . . . 18 3 1 2 17 9 Pick Up 56 | 6 3 4 7 . 4 1 . . 8 3 8 7 . . 1 3 1 Fast Attach 67 | 6 . . 3 . 1 1 . 1 7 7 17 7 2 . 3 5 7 Attach 35 | . 2 1 3 . 3 2 1 . 6 2 7 3 . . 1 . 4 Detach 6 | . . . 1 . 1 . . . . 1 1 1 . . . . 1 Swap 39 | 1 3 3 5 . 5 5 4 . 1 3 9 . . . . . . Drop 48 | . . 2 10 . 8 2 . . 5 4 8 5 . 1 . 3 . Fire 201 | 21 14 9 22 7 14 . 25 2 14 3 68 . . . 1 1 . Melee 1 | . . . . . . . . . . . . . . . . . 1 Ram 2 | . . . . . . . . . . . . . . 1 . . 1 Kick 9 | . . 4 . . 2 . . . 1 . 2 . . . . . . Crush . | . . . . . . . . . . . . . . . . . . Escape Stasis 18 | . . . . . . . . . 5 . . 13 . . . . . Rewire 2 | . . . . . . . 2 . . . . . . . . . . Trap . | . . . . . . . . . . . . . . . . . . Miscellaneous . | . . . . . . . . . . . . . . . . . . Route ------- -11/Scrapyard -10/Materials -10/Mines -9/Materials (discovered 2 exits: *Mat / [*Min]) -9/Mines -8/Materials -7/Factory -7/Lower Caves -7/Lower Caves -6/Factory -6/Waste -6/Factory -5/Factory -4/Factory -4/Extension -3/Research -2/Research (discovered 3 exits: *Acc x3) -1/Access History --------- Turn | Location | Event 18 | -11/Scrapyard | Discovered new exit (range 15) 423 | -11/Scrapyard | Entered Materials 445 | -10/Materials | Build established: Mutant 847 | -10/Materials | Discovered new exit (range 15) 867 | -10/Materials | Entered Mines 882 | -10/Mines | Met a Derelict bent on vengeance 884 | -10/Mines | Discovered new exit (range 6) 1009 | -10/Mines | Learned Materials stockpile data 1191 | -10/Mines | Learned Materials stockpile data 1529 | -10/Mines | Entered Materials 1529 | -9/Materials | Evolved 2 slots: Propulsion x1, Utility x1 1839 | -9/Materials | Discovered new exit (range 16) 2144 | -9/Materials | Central database locked down 2172 | -9/Materials | Discovered new exit (range 11) 2232 | -9/Materials | Repaired Propulsion Shielding 2273 | -9/Materials | Entered Mines 2369 | -9/Mines | Discovered new exit (range 8) 2374 | -9/Mines | Assisted by bots powering up and referring to "LRC-V3" 2385 | -9/Mines | Entered Materials 2385 | -8/Materials | Accompanied by 3 allies 2385 | -8/Materials | Evolved 2 slots: Utility x1, Weapon x1 2676 | -8/Materials | Build established: Gunner 2811 | -8/Materials | Discovered new exit (range 15) 2944 | -8/Materials | Entered Factory 2944 | -7/Factory | Evolved 2 slots: Utility x1, Weapon x1 2982 | -7/Factory | Discovered new exit (range 15) 3048 | -7/Factory | Entered Lower Caves 3180 | -7/Lower Caves | Learned Factory stockpile data 3414 | -7/Lower Caves | Attracted the attention of an 0b10 outpost 3507 | -7/Lower Caves | Destroyed 8 combat bots 3629 | -7/Lower Caves | Encountered a Warlord checkpoint 3737 | -7/Lower Caves | Attacked by a delusional Derelict stockpiling Unaware 3796 | -7/Lower Caves | Discovered new exit (range 5) 3803 | -7/Lower Caves | Entered another Lower Caves area 3874 | -7/Lower Caves | Learned Factory security intel 3880 | -7/Lower Caves | Discovered new exit (range 11) 3919 | -7/Lower Caves | Entered Factory 3919 | -6/Factory | Evolved 2 slots: Utility x2 4230 | -6/Factory | Build established: Hacker-Gunner 4670 | -6/Factory | System corruption reached 10% 4700 | -6/Factory | Lost 7 parts (2n3u2w) 4847 | -6/Factory | Spotted B-75 Beast 4880 | -6/Factory | Sucked down chute 4880 | -6/Factory | Entered Waste 4890 | -6/Waste | Spotted C-40 Crusher 4915 | -6/Waste | Spotted C-40 Crusher 4928 | -6/Waste | Spotted C-40 Crusher 4935 | -6/Waste | Crushed by Compactor (1 part destroyed, 1 dropped) 4938 | -6/Waste | Crushed by Compactor (1 part destroyed, 1 dropped) 4943 | -6/Waste | Crushed by Compactor (1 part destroyed, 1 dropped) 4954 | -6/Waste | Warlord forces began an assault 4974 | -6/Waste | Lost 6 parts (1p1n3u1w) 5092 | -6/Waste | Spotted C-40 Crusher 5098 | -6/Waste | Allies destroyed C-40 Crusher 5110 | -6/Waste | Spotted C-40 Crusher 5125 | -6/Waste | Allies destroyed C-40 Crusher 5162 | -6/Waste | Discovered new exit (range 15) 5186 | -6/Waste | Entered Factory 5186 | -6/Factory | Accompanied by 9 allies 5783 | -6/Factory | Lost 3 allies 5993 | -6/Factory | Cargo convoy interrupted 6074 | -6/Factory | Lost 3 allies 6113 | -6/Factory | Core integrity fell below 50% 6118 | -6/Factory | Lost 16 parts (1p4n5u6w) 6573 | -6/Factory | Discovered new exit (range 12) 6603 | -6/Factory | Core integrity fell below 20% 6604 | -6/Factory | Entered another Factory area 6604 | -5/Factory | Evolved 2 slots: Power x1, Propulsion x1 6635 | -5/Factory | Lost 8 parts (1p5u2w) 6966 | -5/Factory | Central database locked down 7102 | -5/Factory | Build established: Hacker-Mutant 7187 | -5/Factory | Discovered new exit (range 15) 7193 | -5/Factory | Entered another Factory area 7193 | -4/Factory | Evolved 2 slots: Utility x2 7194 | -4/Factory | Lost 7 parts (2p5u) 7260 | -4/Factory | Spotted B-86 Titan 7279 | -4/Factory | Discovered new exit (range 15) 7284 | -4/Factory | Entered Extension 7340 | -4/Extension | Spotted B-86 Titan 7345 | -4/Extension | Spotted B-86 Titan 7350 | -4/Extension | Core integrity fell below 50% 7352 | -4/Extension | Discovered new exit (range 3) 7353 | -4/Extension | Entered Research 7353 | -3/Research | Evolved 2 slots: Utility x2 7460 | -3/Research | Build established: Mutant 7506 | -3/Research | Discovered new exit (range 15) 7513 | -3/Research | Entered another Research area 7513 | -2/Research | Evolved 2 slots: Propulsion x1, Utility x1 7624 | -2/Research | Identified exit to Access 7681 | -2/Research | Entered Access 7681 | -1/Access | Evolved 2 slots: Propulsion x1, Utility x1 7841 | -1/Access | Lost 8 parts (1p2n5u) 7842 | -1/Access | Found Prototype Hackware 7842 | -1/Access | Identified Exp. Hacking Suite 7855 | -1/Access | Spotted B-99 Colossus 7869 | -1/Access | Core integrity fell below 50% 7876 | -1/Access | System corruption reached 10% 7890 | -1/Access | Lost 5 parts (1n3u1w) 7924 | -1/Access | Core integrity fell below 20% 7934 | -1/Access | Destroyed by S-43 Plague with Heavy Machine Gun Last Messages --------------- 07867_ ALERT: Potential suspicious activity detected, Programmers report to Access Zone 6M. 07869_ Slammed into Y-72 Warden. 07872_ Acquired Q-thruster. 07886_ Acquired Seismic Detector. 07889_ MECQSY< TE YZ7|: DO1